[Event "Early-Titled-Tuesday-Blitz-September-05-2023"]
[Site "Chess.com"]
[Date "2023.09.05"]
[Round "2"]
[White "gm_rashid"]
[Black "Actuary44"]
[Result "1/2-1/2"]
[WhiteElo "2394"]
[BlackElo "2542"]
[TimeControl "180+1"]
[EndTime "8:19:10 PDT"]
[Termination "Game drawn by repetition"]

1. d4 {[%clk 0:03:00.9]} 1... Nf6 {[%clk 0:02:59.8]} 2. c4 {[%clk 0:03:00.8]}
2... g6 {[%clk 0:03:00.3]} 3. g3 {[%clk 0:03:00.4]} 3... Bg7 {[%clk 0:03:00.7]}
4. Bg2 {[%clk 0:03:00.6]} 4... d6 {[%clk 0:03:01.3]} 5. Nf3 {[%clk 0:02:59.3]}
5... O-O {[%clk 0:03:01.9]} 6. O-O {[%clk 0:02:58.2]} 6... Nfd7 {[%clk
0:03:02.5]} 7. Nc3 {[%clk 0:02:54.7]} 7... Nc6 {[%clk 0:03:02.8]} 8. e4 {[%clk
0:02:53.8]} 8... e5 {[%clk 0:03:02.8]} 9. d5 {[%clk 0:02:52.2]} 9... Ne7 {[%clk
0:03:02.9]} 10. Ne1 {[%clk 0:02:49.3]} 10... f5 {[%clk 0:03:01.5]} 11. Nd3
{[%clk 0:02:46.9]} 11... h6 {[%clk 0:02:59.1]} 12. b4 {[%clk 0:02:45.3]} 12...
g5 {[%clk 0:02:57.1]} 13. Ba3 {[%clk 0:02:22.1]} 13... f4 {[%clk 0:02:56.1]} 14.
f3 {[%clk 0:02:16.8]} 14... fxg3 {[%clk 0:02:51.9]} 15. hxg3 {[%clk 0:02:16.5]}
15... h5 {[%clk 0:02:51.8]} 16. c5 {[%clk 0:02:12.8]} 16... h4 {[%clk
0:02:51.1]} 17. g4 {[%clk 0:01:59.1]} 17... Ng6 {[%clk 0:02:50.2]} 18. Rc1
{[%clk 0:01:57]} 18... Nf4 {[%clk 0:02:46.3]} 19. Nxf4 {[%clk 0:01:55.4]} 19...
exf4 {[%clk 0:02:47.2]} 20. cxd6 {[%clk 0:01:51.1]} 20... cxd6 {[%clk
0:02:48.1]} 21. Nb5 {[%clk 0:01:51.3]} 21... Qb6+ {[%clk 0:02:39.8]} 22. Kh2
{[%clk 0:01:23.6]} 22... Qxb5 {[%clk 0:02:38.9]} 23. Qb3 {[%clk 0:01:17.3]}
23... Ne5 {[%clk 0:02:36.8]} 24. Rc7 {[%clk 0:01:13.1]} 24... Qd3 {[%clk
0:02:07.6]} 25. Rc3 {[%clk 0:00:55.6]} 25... Qe2 {[%clk 0:01:56.3]} 26. Rc2
{[%clk 0:00:53.3]} 26... Qd3 {[%clk 0:01:44.4]} 27. Qxd3 {[%clk 0:00:27]} 27...
Nxd3 {[%clk 0:01:45.3]} 28. b5 {[%clk 0:00:25.2]} 28... Nc5 {[%clk 0:01:42.8]}
29. Bxc5 {[%clk 0:00:18.5]} 29... dxc5 {[%clk 0:01:43.7]} 30. Rxc5 {[%clk
0:00:19.2]} 30... Bd7 {[%clk 0:01:44.2]} 31. Rfc1 {[%clk 0:00:19.3]} 31... Rac8
{[%clk 0:01:43]} 32. Rc7 {[%clk 0:00:18.2]} 32... Be5 {[%clk 0:01:37.1]} 33. d6
{[%clk 0:00:13.1]} 33... Rxc7 {[%clk 0:00:52.7]} 34. Rxc7 {[%clk 0:00:11.4]}
34... Bxb5 {[%clk 0:00:52]} 35. Rxb7 {[%clk 0:00:11.3]} 35... Bc6 {[%clk
0:00:47.2]} 36. Rc7 {[%clk 0:00:11.1]} 36... Bb5 {[%clk 0:00:42.3]} 37. Rc5
{[%clk 0:00:11]} 37... Bxd6 {[%clk 0:00:25.7]} 38. Rxg5+ {[%clk 0:00:10.7]}
38... Kf7 {[%clk 0:00:24.1]} 39. Rxb5 {[%clk 0:00:11.6]} 39... Re8 {[%clk
0:00:19.7]} 40. Rb7+ {[%clk 0:00:10.9]} 40... Re7 {[%clk 0:00:17.9]} 41. Rxe7+
{[%clk 0:00:11.1]} 41... Bxe7 {[%clk 0:00:18.2]} 42. Bf1 {[%clk 0:00:12]} 42...
Ke6 {[%clk 0:00:18.3]} 43. Bc4+ {[%clk 0:00:12.9]} 43... Ke5 {[%clk 0:00:18.7]}
44. Bd5 {[%clk 0:00:12.5]} 44... Kd4 {[%clk 0:00:19]} 45. Kg2 {[%clk 0:00:12.3]}
45... Ke3 {[%clk 0:00:19.4]} 46. e5 {[%clk 0:00:12.5]} 46... Kd4 {[%clk
0:00:18]} 47. Be4 {[%clk 0:00:11.2]} 47... Kxe5 {[%clk 0:00:18.1]} 48. Kh3
{[%clk 0:00:11.8]} 48... Kd4 {[%clk 0:00:17.7]} 49. Kg2 {[%clk 0:00:12.1]} 49...
Kc3 {[%clk 0:00:16.5]} 50. Bd5 {[%clk 0:00:11.9]} 50... Kb2 {[%clk 0:00:16.3]}
51. a4 {[%clk 0:00:11.1]} 51... Ka3 {[%clk 0:00:14]} 52. Bc6 {[%clk 0:00:11.5]}
52... Kb4 {[%clk 0:00:13.6]} 53. Be8 {[%clk 0:00:10]} 53... Kc5 {[%clk
0:00:13.2]} 54. Bd7 {[%clk 0:00:09.9]} 54... Kd5 {[%clk 0:00:13.1]} 55. Be8
{[%clk 0:00:09.6]} 55... Kd4 {[%clk 0:00:12.4]} 56. Bd7 {[%clk 0:00:09.9]} 56...
Ke3 {[%clk 0:00:12.8]} 57. Bc6 {[%clk 0:00:10.4]} 57... Ke2 {[%clk 0:00:12.6]}
58. Bd5 {[%clk 0:00:10.2]} 58... Kd3 {[%clk 0:00:11.9]} 59. Bc6 {[%clk
0:00:10.6]} 59... Kd4 {[%clk 0:00:11.6]} 60. Bb7 {[%clk 0:00:10.8]} 60... Kc5
{[%clk 0:00:11.9]} 61. Bc8 {[%clk 0:00:10]} 61... Kb4 {[%clk 0:00:11]} 62. Bd7
{[%clk 0:00:10.2]} 62... a5 {[%clk 0:00:10.9]} 63. Bc6 {[%clk 0:00:10.2]} 63...
Kc5 {[%clk 0:00:11]} 64. Bb7 {[%clk 0:00:10.6]} 64... Kb6 {[%clk 0:00:11]} 65.
Bd5 {[%clk 0:00:10.6]} 65... Kc5 {[%clk 0:00:11.4]} 66. Bb7 {[%clk 0:00:11]}
66... Kb4 {[%clk 0:00:11.9]} 67. Bc6 {[%clk 0:00:11.2]} 67... Kc3 {[%clk
0:00:12.5]} 68. Bb5 {[%clk 0:00:11]} 68... Kd2 {[%clk 0:00:12.8]} 69. Bc6 {[%clk
0:00:11.5]} 69... Kd3 {[%clk 0:00:13.2]} 70. Bb5+ {[%clk 0:00:11.7]} 70... Ke3
{[%clk 0:00:13.4]} 71. Bc6 {[%clk 0:00:12.3]} 71... Ke2 {[%clk 0:00:14.1]} 72.
Bb5+ {[%clk 0:00:12.7]} 72... Ke3 {[%clk 0:00:13.9]} 73. Bc6 {[%clk 0:00:13.6]}
73... Bf6 {[%clk 0:00:12.8]} 74. Bd5 {[%clk 0:00:13.2]} 74... Bg5 {[%clk
0:00:12.6]} 75. Bc6 {[%clk 0:00:13.6]} 75... Kd4 {[%clk 0:00:12.7]} 76. Bb7
{[%clk 0:00:13.7]} 76... Kc5 {[%clk 0:00:13]} 77. Ba8 {[%clk 0:00:13.6]} 77...
Kb4 {[%clk 0:00:13.1]} 78. Bc6 {[%clk 0:00:13.7]} 78... Kc5 {[%clk 0:00:13.3]}
79. Bd7 {[%clk 0:00:13.6]} 79... Kc4 {[%clk 0:00:13.8]} 80. Be8 {[%clk
0:00:13.7]} 80... Kd3 {[%clk 0:00:13.4]} 81. Bc6 {[%clk 0:00:14.1]} 81... Ke3
{[%clk 0:00:13.7]} 82. Bb7 {[%clk 0:00:14.2]} 82... Ke2 {[%clk 0:00:13.9]} 83.
Bc6 {[%clk 0:00:14.4]} 83... Ke3 {[%clk 0:00:14.2]} 84. Bb7 {[%clk 0:00:14.8]}
84... Ke2 {[%clk 0:00:13.6]} 85. Bc6 {[%clk 0:00:15.2]} 85... Ke3 {[%clk
0:00:14.1]} 1/2-1/2

[Event "Early-Titled-Tuesday-Blitz-September-05-2023"]
[Site "Chess.com"]
[Date "2023.09.05"]
[Round "2"]
[White "PepeCuenca"]
[Black "Arteler"]
[Result "0-1"]
[WhiteElo "2719"]
[BlackElo "2396"]
[TimeControl "180+1"]
[EndTime "8:19:13 PDT"]
[Termination "Arteler won on time"]

1. e4 {[%clk 0:03:00.9]} 1... e6 {[%clk 0:02:59.5]} 2. d4 {[%clk 0:02:59.7]}
2... d5 {[%clk 0:03:00.2]} 3. Nc3 {[%clk 0:03:00.1]} 3... Bb4 {[%clk 0:03:00.1]}
4. e5 {[%clk 0:02:57.7]} 4... c5 {[%clk 0:03:00.5]} 5. a3 {[%clk 0:02:58]} 5...
Ba5 {[%clk 0:02:55.8]} 6. b4 {[%clk 0:02:53.4]} 6... cxd4 {[%clk 0:02:55.8]} 7.
Nb5 {[%clk 0:02:53.8]} 7... Bc7 {[%clk 0:02:56.5]} 8. f4 {[%clk 0:02:52.2]} 8...
Bd7 {[%clk 0:02:56.7]} 9. Nxd4 {[%clk 0:02:42.7]} 9... Ba4 {[%clk 0:02:45.3]}
10. Ngf3 {[%clk 0:02:39.3]} 10... Ne7 {[%clk 0:02:45.1]} 11. Bd3 {[%clk
0:02:38.4]} 11... Nbc6 {[%clk 0:02:45.5]} 12. Be3 {[%clk 0:02:27.7]} 12... Bb6
{[%clk 0:02:42.7]} 13. Qd2 {[%clk 0:02:24]} 13... Rc8 {[%clk 0:02:32.8]} 14. c3
{[%clk 0:02:02.5]} 14... Nxd4 {[%clk 0:02:24.4]} 15. cxd4 {[%clk 0:01:49.3]}
15... Qd7 {[%clk 0:02:03.9]} 16. O-O {[%clk 0:01:41.3]} 16... Bb5 {[%clk
0:02:04.1]} 17. Bxb5 {[%clk 0:01:33.2]} 17... Qxb5 {[%clk 0:02:05]} 18. a4
{[%clk 0:01:32.9]} 18... Qd7 {[%clk 0:02:03.6]} 19. Qd3 {[%clk 0:01:22.7]} 19...
Nf5 {[%clk 0:01:56.3]} 20. Bf2 {[%clk 0:01:21.7]} 20... O-O {[%clk 0:01:44.1]}
21. g4 {[%clk 0:01:18.9]} 21... Ne7 {[%clk 0:01:42.4]} 22. Ng5 {[%clk
0:01:12.4]} 22... Ng6 {[%clk 0:01:35.1]} 23. Be3 {[%clk 0:00:33.5]} 23... Bd8
{[%clk 0:01:29.5]} 24. Nf3 {[%clk 0:00:31.5]} 24... f5 {[%clk 0:01:21.9]} 25.
exf6 {[%clk 0:00:28.3]} 25... Bxf6 {[%clk 0:01:19.9]} 26. b5 {[%clk 0:00:25.7]}
26... Be7 {[%clk 0:01:09.3]} 27. Ne5 {[%clk 0:00:14.7]} 27... Nxe5 {[%clk
0:01:09.5]} 28. fxe5 {[%clk 0:00:09.5]} 28... Bb4 {[%clk 0:00:48.4]} 29. Rxf8+
{[%clk 0:00:09.1]} 29... Rxf8 {[%clk 0:00:49.3]} 30. Rf1 {[%clk 0:00:09.1]}
30... Rxf1+ {[%clk 0:00:39.3]} 31. Kxf1 {[%clk 0:00:10]} 31... Qf7+ {[%clk
0:00:38.7]} 32. Ke2 {[%clk 0:00:09.5]} 32... Qe7 {[%clk 0:00:37.3]} 33. h3
{[%clk 0:00:07]} 33... Qh4 {[%clk 0:00:37.2]} 34. Bf2 {[%clk 0:00:07.1]} 34...
Qg5 {[%clk 0:00:36.2]} 35. Be3 {[%clk 0:00:05.4]} 35... Qh4 {[%clk 0:00:36.1]}
36. Bf2 {[%clk 0:00:05.8]} 36... Qg5 {[%clk 0:00:35.3]} 37. Qc2 {[%clk
0:00:06.4]} 37... h6 {[%clk 0:00:32.4]} 38. Qc8+ {[%clk 0:00:04.7]} 38... Kh7
{[%clk 0:00:31.3]} 39. Qxe6 {[%clk 0:00:05.1]} 39... Qd2+ {[%clk 0:00:29.3]} 40.
Kf1 {[%clk 0:00:05.5]} 40... Qd3+ {[%clk 0:00:23.6]} 41. Kg1 {[%clk 0:00:04.4]}
41... Qxh3 {[%clk 0:00:21.6]} 42. Qf5+ {[%clk 0:00:04.1]} 42... Kg8 {[%clk
0:00:21.8]} 43. e6 {[%clk 0:00:04.7]} 43... Qb3 {[%clk 0:00:14.1]} 44. Qf7+
{[%clk 0:00:04.5]} 44... Kh7 {[%clk 0:00:14.6]} 45. Qf5+ {[%clk 0:00:04.7]}
45... Kg8 {[%clk 0:00:14]} 46. Kg2 {[%clk 0:00:05.3]} 46... Qd1 {[%clk 0:00:14]}
47. Qf7+ {[%clk 0:00:05]} 47... Kh7 {[%clk 0:00:14.2]} 48. Qf5+ {[%clk
0:00:05.5]} 48... Kg8 {[%clk 0:00:14.4]} 49. Kg3 {[%clk 0:00:05.8]} 49... Qe2
{[%clk 0:00:14.7]} 50. Kg2 {[%clk 0:00:05.3]} 50... Bd6 {[%clk 0:00:14.5]} 51.
Qf7+ {[%clk 0:00:05]} 51... Kh7 {[%clk 0:00:14.4]} 52. Qf5+ {[%clk 0:00:05.7]}
52... Kg8 {[%clk 0:00:14.8]} 53. Qxd5 {[%clk 0:00:05.9]} 53... Qxg4+ {[%clk
0:00:14.8]} 54. Kf1 {[%clk 0:00:06.4]} 54... Qd1+ {[%clk 0:00:15.2]} 55. Kg2
{[%clk 0:00:06.8]} 55... Qg4+ {[%clk 0:00:15.6]} 56. Kf1 {[%clk 0:00:06.1]}
56... Qd1+ {[%clk 0:00:16.2]} 57. Be1 {[%clk 0:00:03.6]} 57... Qd3+ {[%clk
0:00:16.8]} 58. Kg1 {[%clk 0:00:03.1]} 58... Qe3+ {[%clk 0:00:15.1]} 59. Bf2
{[%clk 0:00:03.4]} 59... Qc1+ {[%clk 0:00:13.1]} 60. Kg2 {[%clk 0:00:04]} 60...
Qg5+ {[%clk 0:00:11.4]} 61. Qxg5 {[%clk 0:00:04]} 61... hxg5 {[%clk 0:00:12.3]}
62. Kf3 {[%clk 0:00:04.4]} 62... Kf8 {[%clk 0:00:12.9]} 63. d5 {[%clk
0:00:04.9]} 63... Ke7 {[%clk 0:00:13.8]} 64. Ke4 {[%clk 0:00:05.1]} 64... g4
{[%clk 0:00:13.4]} 65. Kf5 {[%clk 0:00:04.8]} 65... g3 {[%clk 0:00:13.9]} 66.
Be3 {[%clk 0:00:05.3]} 66... g2 {[%clk 0:00:14.1]} 67. Kg4 {[%clk 0:00:05.5]}
67... Bh2 {[%clk 0:00:14.2]} 68. Bc5+ {[%clk 0:00:05.8]} 68... Kf6 {[%clk
0:00:13.4]} 69. e7 {[%clk 0:00:05.3]} 69... Kf7 {[%clk 0:00:13.2]} 70. d6 {[%clk
0:00:05.4]} 70... g1=Q+ {[%clk 0:00:11.4]} 71. Bxg1 {[%clk 0:00:05.6]} 71...
Bxg1 {[%clk 0:00:12.3]} 72. Kf5 {[%clk 0:00:06.2]} 72... Bh2 {[%clk 0:00:10.1]}
73. d7 {[%clk 0:00:01.2]} 73... Kxe7 {[%clk 0:00:10.6]} 74. Kg6 {[%clk
0:00:01.8]} 74... Be5 {[%clk 0:00:10.7]} 75. Kf5 {[%clk 0:00:02.1]} 75... Bf6
{[%clk 0:00:11.3]} 76. Kg6 {[%clk 0:00:02.6]} 76... Kxd7 {[%clk 0:00:12.1]} 77.
Kf5 {[%clk 0:00:03.5]} 77... Kd6 {[%clk 0:00:12.8]} 78. Ke4 {[%clk 0:00:03.8]}
78... Kc5 {[%clk 0:00:13.6]} 79. Kd3 {[%clk 0:00:04.6]} 79... Kb4 {[%clk
0:00:14.2]} 80. Ke4 {[%clk 0:00:05.5]} 80... Kxa4 {[%clk 0:00:14.6]} 81. Kd5
{[%clk 0:00:06.4]} 81... Kxb5 {[%clk 0:00:15]} 82. Ke4 {[%clk 0:00:06.4]} 82...
a5 {[%clk 0:00:15.9]} 0-1

[Event "Early-Titled-Tuesday-Blitz-September-05-2023"]
[Site "Chess.com"]
[Date "2023.09.05"]
[Round "2"]
[White "Stouuf"]
[Black "CrazyMartian"]
[Result "1-0"]
[WhiteElo "2620"]
[BlackElo "2349"]
[TimeControl "180+1"]
[EndTime "8:19:13 PDT"]
[Termination "Stouuf won by checkmate"]

1. e4 {[%clk 0:03:00.9]} 1... c5 {[%clk 0:02:58.1]} 2. Nf3 {[%clk 0:03:00.5]}
2... d5 {[%clk 0:02:58.5]} 3. exd5 {[%clk 0:02:59.5]} 3... Nf6 {[%clk 0:02:59]}
4. d4 {[%clk 0:02:51.3]} 4... Nxd5 {[%clk 0:02:57.6]} 5. c4 {[%clk 0:02:48.2]}
5... Nf6 {[%clk 0:02:56.7]} 6. d5 {[%clk 0:02:47.3]} 6... e6 {[%clk 0:02:57.1]}
7. Nc3 {[%clk 0:02:48]} 7... exd5 {[%clk 0:02:57.6]} 8. cxd5 {[%clk 0:02:48.9]}
8... Bd6 {[%clk 0:02:57.5]} 9. Bb5+ {[%clk 0:02:49.4]} 9... Nbd7 {[%clk
0:02:55.8]} 10. O-O {[%clk 0:02:49.2]} 10... O-O {[%clk 0:02:55.9]} 11. a4
{[%clk 0:02:49.1]} 11... h6 {[%clk 0:02:56]} 12. Re1 {[%clk 0:02:45.7]} 12... a6
{[%clk 0:02:56.4]} 13. Bd3 {[%clk 0:02:41.6]} 13... Re8 {[%clk 0:02:56.7]} 14.
Rxe8+ {[%clk 0:02:27.8]} 14... Qxe8 {[%clk 0:02:56.6]} 15. a5 {[%clk 0:02:20.9]}
15... Ne5 {[%clk 0:02:56]} 16. Be2 {[%clk 0:01:53]} 16... Nxf3+ {[%clk
0:02:37.5]} 17. Bxf3 {[%clk 0:01:52.6]} 17... Qe5 {[%clk 0:02:36.9]} 18. g3
{[%clk 0:01:51.6]} 18... Bh3 {[%clk 0:02:33.9]} 19. Bf4 {[%clk 0:01:40.8]} 19...
Qe7 {[%clk 0:02:33.8]} 20. Bxd6 {[%clk 0:01:41.4]} 20... Qxd6 {[%clk 0:02:34.7]}
21. Qb3 {[%clk 0:01:37.2]} 21... Qc7 {[%clk 0:01:51.7]} 22. Re1 {[%clk
0:01:29.4]} 22... Re8 {[%clk 0:01:37.2]} 23. Rxe8+ {[%clk 0:01:17.2]} 23... Nxe8
{[%clk 0:01:38.1]} 24. Qa4 {[%clk 0:00:57.5]} 24... Nd6 {[%clk 0:01:31.4]} 25.
Qh4 {[%clk 0:00:54.4]} 25... Bf5 {[%clk 0:01:25.6]} 26. Qf4 {[%clk 0:00:54.2]}
26... Qe7 {[%clk 0:01:15.1]} 27. Kg2 {[%clk 0:00:51.6]} 27... g5 {[%clk
0:01:02.7]} 28. Qd2 {[%clk 0:00:41.3]} 28... Qe5 {[%clk 0:00:55.2]} 29. h3
{[%clk 0:00:32.8]} 29... Kg7 {[%clk 0:00:55.1]} 30. g4 {[%clk 0:00:32.3]} 30...
Bg6 {[%clk 0:00:27.6]} 31. b3 {[%clk 0:00:20.5]} 31... f5 {[%clk 0:00:20.9]} 32.
Na4 {[%clk 0:00:19.4]} 32... fxg4 {[%clk 0:00:19.2]} 33. hxg4 {[%clk 0:00:20.3]}
33... Be4 {[%clk 0:00:19]} 34. Bxe4 {[%clk 0:00:16.6]} 34... Qxe4+ {[%clk
0:00:19.4]} 35. f3 {[%clk 0:00:16.2]} 35... Qd4 {[%clk 0:00:16.1]} 36. Qxd4+
{[%clk 0:00:06.4]} 36... cxd4 {[%clk 0:00:17]} 37. Kf2 {[%clk 0:00:06.5]} 37...
Kf6 {[%clk 0:00:17.1]} 38. Ke2 {[%clk 0:00:05.2]} 38... Ke5 {[%clk 0:00:17.7]}
39. Kd3 {[%clk 0:00:04.8]} 39... Kxd5 {[%clk 0:00:17.7]} 40. Nb2 {[%clk
0:00:05.4]} 40... Nb5 {[%clk 0:00:14.6]} 41. Nc4 {[%clk 0:00:05.2]} 41... Nc7
{[%clk 0:00:13.3]} 42. Nb6+ {[%clk 0:00:05.3]} 42... Kc6 {[%clk 0:00:11.9]} 43.
Kxd4 {[%clk 0:00:04]} 43... Kb5 {[%clk 0:00:12]} 44. Nc4 {[%clk 0:00:04]} 44...
Kb4 {[%clk 0:00:11.7]} 45. Nd6 {[%clk 0:00:04.6]} 45... Kxb3 {[%clk 0:00:10.7]}
46. Nxb7 {[%clk 0:00:04.2]} 46... Kb4 {[%clk 0:00:11]} 47. Ke5 {[%clk
0:00:04.7]} 47... Kb5 {[%clk 0:00:10.4]} 48. Kf6 {[%clk 0:00:05]} 48... Kc6
{[%clk 0:00:11.2]} 49. Nd8+ {[%clk 0:00:05.3]} 49... Kb5 {[%clk 0:00:11.2]} 50.
Kg6 {[%clk 0:00:04.7]} 50... Nd5 {[%clk 0:00:10.7]} 51. Kxh6 {[%clk 0:00:04.5]}
51... Kxa5 {[%clk 0:00:11.3]} 52. Kxg5 {[%clk 0:00:03.6]} 52... Kb5 {[%clk
0:00:11.9]} 53. Nb7 {[%clk 0:00:03.8]} 53... Kb6 {[%clk 0:00:11.9]} 54. Nd6
{[%clk 0:00:04.3]} 54... Kc6 {[%clk 0:00:11.4]} 55. Nc4 {[%clk 0:00:04.7]} 55...
Kc5 {[%clk 0:00:11.9]} 56. Na3 {[%clk 0:00:05.4]} 56... Kb4 {[%clk 0:00:12]} 57.
Nb1 {[%clk 0:00:05.2]} 57... Kb3 {[%clk 0:00:12.2]} 58. f4 {[%clk 0:00:05.7]}
58... a5 {[%clk 0:00:12.6]} 59. f5 {[%clk 0:00:06]} 59... a4 {[%clk 0:00:13.1]}
60. f6 {[%clk 0:00:06.6]} 60... Nxf6 {[%clk 0:00:13.2]} 61. Kxf6 {[%clk
0:00:07.5]} 61... Kb2 {[%clk 0:00:13.9]} 62. Nd2 {[%clk 0:00:07.7]} 62... Kc2
{[%clk 0:00:14.2]} 63. Nc4 {[%clk 0:00:07.7]} 63... Kb3 {[%clk 0:00:14.8]} 64.
Nd2+ {[%clk 0:00:06.9]} 64... Kc2 {[%clk 0:00:15]} 65. Nc4 {[%clk 0:00:05.6]}
65... Kb3 {[%clk 0:00:15.2]} 66. g5 {[%clk 0:00:03.6]} 66... Kxc4 {[%clk
0:00:14.7]} 67. g6 {[%clk 0:00:04.2]} 67... a3 {[%clk 0:00:14.6]} 68. g7 {[%clk
0:00:05.1]} 68... Kb3 {[%clk 0:00:12.8]} 69. g8=Q+ {[%clk 0:00:06]} 69... Kb2
{[%clk 0:00:13.7]} 70. Qb8+ {[%clk 0:00:06.2]} 70... Ka1 {[%clk 0:00:13.9]} 71.
Qe5+ {[%clk 0:00:04.8]} 71... Kb1 {[%clk 0:00:14.1]} 72. Qb5+ {[%clk 0:00:04.3]}
72... Ka1 {[%clk 0:00:13.9]} 73. Qe5+ {[%clk 0:00:03.9]} 73... Kb1 {[%clk
0:00:14.1]} 74. Qe1+ {[%clk 0:00:04]} 74... Kb2 {[%clk 0:00:14.3]} 75. Qd2+
{[%clk 0:00:04.5]} 75... Kb1 {[%clk 0:00:14.7]} 76. Qd3+ {[%clk 0:00:04.5]}
76... Kb2 {[%clk 0:00:15.2]} 77. Qb5+ {[%clk 0:00:04.8]} 77... Ka1 {[%clk
0:00:15.5]} 78. Qc4 {[%clk 0:00:04.5]} 78... a2 {[%clk 0:00:16.4]} 79. Qc1#
{[%clk 0:00:05]} 1-0

[Event "Early-Titled-Tuesday-Blitz-September-05-2023"]
[Site "Chess.com"]
[Date "2023.09.05"]
[Round "2"]
[White "bolwin"]
[Black "jcmesafischer"]
[Result "0-1"]
[WhiteElo "2262"]
[BlackElo "2484"]
[TimeControl "180+1"]
[EndTime "8:19:13 PDT"]
[Termination "jcmesafischer won by resignation"]

1. Nf3 {[%clk 0:03:00]} 1... d5 {[%clk 0:02:55.1]} 2. c4 {[%clk 0:03:00.9]} 2...
e6 {[%clk 0:02:52.2]} 3. d4 {[%clk 0:03:01]} 3... Nf6 {[%clk 0:02:50.3]} 4. Nc3
{[%clk 0:03:01.2]} 4... Be7 {[%clk 0:02:49.1]} 5. Bg5 {[%clk 0:03:01.5]} 5...
Nbd7 {[%clk 0:02:47.2]} 6. e3 {[%clk 0:03:01.5]} 6... c6 {[%clk 0:02:46]} 7. Qc2
{[%clk 0:03:00.5]} 7... O-O {[%clk 0:02:44.8]} 8. Bd3 {[%clk 0:02:52.6]} 8... h6
{[%clk 0:02:34.3]} 9. Bh4 {[%clk 0:02:52.1]} 9... dxc4 {[%clk 0:02:25.9]} 10.
Bxc4 {[%clk 0:02:51.8]} 10... b5 {[%clk 0:02:25.8]} 11. Bd3 {[%clk 0:02:51]}
11... Bb7 {[%clk 0:02:25.3]} 12. O-O {[%clk 0:02:51.1]} 12... a6 {[%clk
0:02:24.4]} 13. Rfd1 {[%clk 0:02:49.5]} 13... Qb6 {[%clk 0:02:16.9]} 14. Ne5
{[%clk 0:02:41.9]} 14... Rfe8 {[%clk 0:02:01.3]} 15. Nxd7 {[%clk 0:02:24.8]}
15... Nxd7 {[%clk 0:01:58.8]} 16. Bxe7 {[%clk 0:02:25.5]} 16... Rxe7 {[%clk
0:01:59.3]} 17. Ne4 {[%clk 0:02:26]} 17... Rc8 {[%clk 0:01:45]} 18. Rac1 {[%clk
0:02:24.9]} 18... e5 {[%clk 0:01:43.2]} 19. Nd6 {[%clk 0:02:15.2]} 19... Rc7
{[%clk 0:01:39.1]} 20. Nxb7 {[%clk 0:01:20.5]} 20... Qxb7 {[%clk 0:01:34.3]} 21.
dxe5 {[%clk 0:01:10.8]} 21... c5 {[%clk 0:01:21.7]} 22. Bh7+ {[%clk 0:01:05.5]}
22... Kh8 {[%clk 0:01:17]} 23. Be4 {[%clk 0:01:05.5]} 23... Qb6 {[%clk
0:01:15.3]} 24. f4 {[%clk 0:01:05.4]} 24... c4 {[%clk 0:01:13.9]} 25. Qf2 {[%clk
0:01:00.1]} 25... f6 {[%clk 0:01:05.3]} 26. Rd6 {[%clk 0:00:57.5]} 26... Qc5
{[%clk 0:00:55.5]} 27. Rcd1 {[%clk 0:00:57.3]} 27... fxe5 {[%clk 0:00:52.7]} 28.
fxe5 {[%clk 0:00:56.7]} 28... Kg8 {[%clk 0:00:38]} 29. e6 {[%clk 0:00:50.5]}
29... Nf8 {[%clk 0:00:25.7]} 30. Qf5 {[%clk 0:00:36.4]} 30... Qxf5 {[%clk
0:00:22.7]} 31. Bxf5 {[%clk 0:00:36.2]} 31... Rc5 {[%clk 0:00:22.4]} 32. e4
{[%clk 0:00:34.9]} 32... g6 {[%clk 0:00:22.6]} 33. Bg4 {[%clk 0:00:30.2]} 33...
h5 {[%clk 0:00:21.3]} 34. Bh3 {[%clk 0:00:29.5]} 34... Re5 {[%clk 0:00:21.4]}
35. Rxa6 {[%clk 0:00:20.4]} 35... Nxe6 {[%clk 0:00:20.6]} 36. g3 {[%clk
0:00:16.6]} 36... Nc5 {[%clk 0:00:17.5]} 37. Ra8+ {[%clk 0:00:16]} 37... Kg7
{[%clk 0:00:18.1]} 38. Rd5 {[%clk 0:00:16.3]} 38... Nxe4 {[%clk 0:00:17.1]} 39.
Rxe5 {[%clk 0:00:14.4]} 39... Rxe5 {[%clk 0:00:18]} 40. Bf1 {[%clk 0:00:14.2]}
40... Nd2 {[%clk 0:00:17.3]} 41. Rd8 {[%clk 0:00:10.3]} 41... Nf3+ {[%clk
0:00:09.8]} 42. Kf2 {[%clk 0:00:09.7]} 42... Ng5 {[%clk 0:00:09.8]} 43. Be2
{[%clk 0:00:09.3]} 43... Ne4+ {[%clk 0:00:09.5]} 44. Kg1 {[%clk 0:00:09.4]}
44... Kf6 {[%clk 0:00:09.2]} 45. Bf3 {[%clk 0:00:09.3]} 45... Ng5 {[%clk
0:00:07.5]} 46. Kf2 {[%clk 0:00:08.8]} 46... Rf5 {[%clk 0:00:06.9]} 47. Rf8+
{[%clk 0:00:08.7]} 47... Ke5 {[%clk 0:00:07.4]} 48. Rxf5+ {[%clk 0:00:08.7]}
48... Kxf5 {[%clk 0:00:08.3]} 49. Be2 {[%clk 0:00:08.6]} 49... Ke4 {[%clk
0:00:07.5]} 50. h4 {[%clk 0:00:08]} 50... Ne6 {[%clk 0:00:06.8]} 51. Bf3+ {[%clk
0:00:08.4]} 51... Kd3 {[%clk 0:00:06.3]} 52. g4 {[%clk 0:00:07.6]} 52... hxg4
{[%clk 0:00:03.2]} 53. Bxg4 {[%clk 0:00:07.8]} 53... Nd4 {[%clk 0:00:03]} 54.
Bd7 {[%clk 0:00:07.9]} 54... Kc2 {[%clk 0:00:02.8]} 55. Kg3 {[%clk 0:00:07.1]}
55... Kxb2 {[%clk 0:00:02.9]} 56. Be8 {[%clk 0:00:07.7]} 56... c3 {[%clk
0:00:03.3]} 57. Bxg6 {[%clk 0:00:07.5]} 57... Kxa2 {[%clk 0:00:03.5]} 58. h5
{[%clk 0:00:07.3]} 58... b4 {[%clk 0:00:03.8]} 59. h6 {[%clk 0:00:07.4]} 59...
Ne6 {[%clk 0:00:03.6]} 60. h7 {[%clk 0:00:06.7]} 60... Nf8 {[%clk 0:00:01.2]}
61. h8=Q {[%clk 0:00:07]} 61... Nxg6 {[%clk 0:00:01.8]} 62. Qf6 {[%clk
0:00:07.3]} 62... Kb2 {[%clk 0:00:02.5]} 63. Qxg6 {[%clk 0:00:07.4]} 63... b3
{[%clk 0:00:03.4]} 64. Qd3 {[%clk 0:00:07.4]} 64... c2 {[%clk 0:00:04.3]} 65.
Qd4+ {[%clk 0:00:07.9]} 65... Kb1 {[%clk 0:00:04.7]} 66. Qc3 {[%clk 0:00:08]}
66... b2 {[%clk 0:00:05.6]} 67. Kf2 {[%clk 0:00:07.2]} 67... c1=Q {[%clk
0:00:06.5]} 68. Qd3+ {[%clk 0:00:06.3]} 68... Qc2+ {[%clk 0:00:07.4]} 69. Qxc2+
{[%clk 0:00:06.9]} 69... Kxc2 {[%clk 0:00:08.3]} 70. Ke3 {[%clk 0:00:07.8]}
70... b1=Q {[%clk 0:00:09.2]} 71. Kd4 {[%clk 0:00:08.5]} 71... Qb3 {[%clk
0:00:10.1]} 72. Ke5 {[%clk 0:00:08.3]} 72... Kd2 {[%clk 0:00:10.9]} 73. Kf4
{[%clk 0:00:09.2]} 73... Qc3 {[%clk 0:00:11.2]} 74. Kg5 {[%clk 0:00:10.1]} 74...
Ke2 {[%clk 0:00:11.9]} 75. Kf5 {[%clk 0:00:10.9]} 75... Qe3 {[%clk 0:00:12.3]}
0-1